bitfinex-derivatives/quotes_SOLF0:USTF0_20250606
["timestamp","ask_amount","ask_price","bid_price","bid_amount"]
[1749225811275,6.6121,151.12,151.11,0.04312439]
[1749225811465,6.6121,151.12,151.11,8.18760819]
[1749225812265,6.6119,151.13,151.11,8.18760819]
[1749225812571,0.04389696,151.14,151.11,8.18760819]
[1749225812771,6.6116,151.13,151.11,8.18760819]
[1749225813074,7.37205939,151.12,151.11,8.18760819]
[1749225813671,6.6119,151.13,151.11,14.80010819]
[1749225813873,7.37137221,151.12,151.11,14.80010819]
[1749225814373,7.37141836,151.12,151.11,14.80010819]
[1749225815371,7.36602441,151.12,151.11,14.80010819]
[1749225815573,7.36565298,151.12,151.11,14.80010819]
[1749225815773,12.0691561,151.14,151.12,6.612]
[1749225815970,6.65529696,151.14,151.13,8.1444838]
[1749225816171,14.01651429,151.14,151.13,8.1444838]
[1749225816371,11.45054831,151.14,151.13,8.1444838]
[1749225816571,14.01675054,151.14,151.13,8.1444838]
[1749225816874,11.45030722,151.14,151.13,8.1444838]
[1749225817071,9.22096384,151.14,151.13,8.1444838]
[1749225817268,14.01601583,151.14,151.13,8.1444838]
[1749225817470,9.22108819,151.14,151.13,8.1444838]
[1749225817666,14.01644792,151.14,151.13,8.1444838]
[1749225817869,14.01647752,151.14,151.13,8.1444838]
[1749225818079,14.01647747,151.14,151.13,8.1444838]
[1749225818272,14.01484604,151.14,151.13,8.1444838]
[1749225818479,9.22109772,151.14,151.13,8.1444838]
[1749225818773,2.60986575,151.14,151.13,14.7560838]
[1749225818975,2.61025033,151.14,151.11,0.04312439]
[1749225819176,7.36109053,151.13,151.11,0.04312439]
[1749225819381,0.04389696,151.14,151.12,14.7561838]
[1749225819578,7.3625251,151.13,151.12,14.7561838]
[1749225820173,7.3625251,151.13,151.12,8.1444838]
[1749225820371,7.36394692,151.13,151.12,8.1444838]
[1749225820567,7.36394692,151.13,151.12,14.7565838]
[1749225820777,4.79570266,151.13,151.12,14.7565838]
[1749225821078,7.36612006,151.13,151.12,14.7565838]
[1749225821377,7.36656745,151.13,151.12,14.7565838]
[1749225821775,7.36656745,151.13,151.12,8.1444838]
[1749225821977,7.36573305,151.13,151.11,0.04312439]
[1749225822176,7.36573305,151.12,151.11,8.18760819]
[1749225822376,7.36573305,151.12,151.11,14.80010819]
[1749225822678,7.36425959,151.12,151.11,14.80010819]
[1749225824081,7.36309304,151.12,151.11,14.80010819]
[1749225824578,6.65519696,151.14,151.12,6.6118]
[1749225824779,6.65519696,151.14,151.13,8.1444838]
[1749225825982,0.04389696,151.14,151.13,14.7560838]
[1749225827180,0.04389696,151.14,151.12,6.6119]
[1749225827480,0.04389696,151.14,151.13,8.1444838]
[1749225828185,0.04389696,151.14,151.13,14.7560838]
[1749225828577,5.41421285,151.18,151.15,6.6106]
[1749225828875,36.0859,151.19,151.12,42.1244838]
[1749225828876,12.02411285,151.17,151.12,42.1244838]
[1749225829080,6.6099,151.17,151.16,8.1444838]
[1749225829275,12.02411285,151.17,151.16,8.1444838]
[1749225829478,6.6099,151.17,151.16,8.1444838]
[1749225829680,12.02739579,151.17,151.16,8.1444838]
[1749225830484,6.6099,151.17,151.16,8.1444838]
[1749225830683,12.02739579,151.17,151.16,8.1444838]
[1749225830882,12.02887643,151.17,151.16,8.1444838]
[1749225831085,6.6099,151.17,151.16,8.1444838]
[1749225831584,12.03026101,151.17,151.16,8.1444838]
[1749225832188,6.6099,151.17,151.16,8.1444838]
[1749225832580,12.03206464,151.17,151.16,8.1444838]
[1749225832785,6.6099,151.17,151.16,8.1444838]
[1749225833097,12.03157514,151.17,151.16,8.1444838]
[1749225833596,12.03265882,151.17,151.16,8.1444838]
[1749225833997,6.6099,151.17,151.16,8.1444838]
[1749225835897,12.04305003,151.17,151.16,8.1444838]
[1749225836197,12.04275342,151.17,151.16,8.1444838]
[1749225836498,16.77027501,151.17,151.16,8.1444838]
[1749225836698,16.77010531,151.17,151.16,8.1444838]
[1749225836999,16.77152366,151.17,151.16,8.1444838]
[1749225837694,11.33860642,151.17,151.16,8.1444838]
[1749225838697,12.0428269,151.17,151.16,8.1444838]
[1749225838897,11.34057253,151.17,151.16,8.1444838]
[1749225839599,16.77297929,151.17,151.16,8.1444838]
[1749225839896,16.7723875,151.17,151.16,8.1444838]
[1749225840095,12.04230676,151.17,151.16,8.1444838]
[1749225840293,16.77385151,151.17,151.16,8.1444838]
[1749225840599,16.77331914,151.17,151.16,8.1444838]
[1749225841202,12.04230676,151.17,151.16,8.1444838]
[1749225842901,16.77889018,151.17,151.16,8.1444838]
[1749225843807,16.78208787,151.17,151.16,8.1444838]
[1749225844699,10.17218787,151.17,151.16,8.1444838]
[1749225844903,5.44151202,151.21,151.16,8.1444838]
[1749225845094,25.60237075,151.25,151.16,8.1444838]
[1749225845095,33.96,151.25,151.16,33.96]
[1749225845405,42.05967075,151.28,151.16,33.96]
[1749225845605,33.96,151.28,151.2,8.1444838]
[1749225845804,33.96,151.28,151.25,8.1444838]
[1749225846000,33.96,151.28,151.25,8.18941719]
[1749225846393,6.606,151.26,151.25,8.18941719]
[1749225846598,33.96,151.28,151.25,8.18941719]
[1749225847499,6.606,151.26,151.25,8.18941719]
[1749225848102,6.6057,151.27,151.25,8.18941719]
[1749225848795,6.6052,151.28,151.25,8.18941719]
[1749225848999,33.96,151.31,151.27,8.1444838]
[1749225849307,33.96,151.31,151.28,8.1444838]
[1749225850006,6.6045,151.3,151.28,8.1444838]
[1749225850206,33.96,151.31,151.28,8.1444838]
[1749225850400,6.6042,151.3,151.28,8.1444838]
[1749225850907,6.6046,151.29,151.28,8.1444838]
[1749225851906,6.6044,151.3,151.28,8.1444838]
[1749225852297,33.94,151.36,151.28,8.1444838]
[1749225852497,6.604,151.31,151.3,0.04893777]
[1749225853002,14.7484838,151.31,151.3,0.04893777]
[1749225853203,14.7484838,151.31,151.3,3.777e-05]
[1749225853807,6.6068,151.25,151.21,48.6924838]
[1749225854002,8.1444838,151.25,151.21,33.94]
[1749225854200,6.6077,151.22,151.21,33.94]
[1749225854397,8.1444838,151.25,151.19,8.1444838]
[1749225854804,6.6081,151.21,151.2,0.04393268]
[1749225855897,6.6102,151.17,151.15,33.94]
[1749225856097,8.1444838,151.19,151.15,33.94]
[1749225856302,8.1444838,151.19,151.13,8.1444838]
[1749225856506,6.6104,151.16,151.13,8.1444838]
[1749225856707,6.6104,151.16,151.12,33.94]
[1749225856908,6.65829313,151.16,151.13,14.7557838]
[1749225857206,0.04789313,151.16,151.13,14.7557838]
[1749225858112,0.04789313,151.16,151.14,6.6111]
[1749225858908,0.04789313,151.16,151.13,8.1444838]
[1749225859105,0.04789313,151.16,151.12,33.98259927]
[1749225859403,0.04789313,151.16,151.12,0.04259927]
[1749225859599,6.6109,151.15,151.12,6.65439927]
[1749225860608,6.65829313,151.16,151.13,6.6116]
[1749225861306,6.65829313,151.16,151.12,14.79898307]
[1749225862102,6.65829313,151.16,151.13,6.6116]
[1749225862506,6.65829313,151.16,151.12,8.18708307]
[1749225863408,0.04789313,151.16,151.13,6.6113]
[1749225864110,6.65849313,151.16,151.13,6.6113]
[1749225866310,6.65849313,151.16,151.12,14.79898307]
[1749225866814,6.65849313,151.16,151.13,6.6116]
[1749225867509,6.6109,151.15,151.12,0.04259927]
[1749225868709,6.6109,151.15,151.12,6.65459927]
[1749225869306,6.65839313,151.16,151.12,6.65459927]
[1749225869910,6.611,151.15,151.12,6.65459927]
[1749225870205,0.04789313,151.16,151.12,0.04259927]
[1749225870906,0.04789313,151.16,151.13,6.6116]
[1749225871107,0.04789313,151.16,151.12,0.04259927]
[1749225871410,0.04789313,151.16,151.14,6.611]
[1749225871710,0.04789313,151.16,151.13,8.1444838]
[1749225872510,0.04789313,151.16,151.14,6.6108]
[1749225872915,0.04789313,151.16,151.12,0.04259927]
[1749225873102,0.04789313,151.16,151.12,6.65449927]
[1749225873305,0.04789313,151.16,151.12,0.04259927]
[1749225873502,6.6114,151.14,151.12,0.04259927]
[1749225874113,6.6116,151.13,151.12,0.04259927]
[1749225874409,8.1444838,151.13,151.06,33.96]
[1749225874714,6.6135,151.09,151.06,6.6144]
[1749225874908,6.6135,151.09,151.05,10.3712838]
[1749225875107,8.1444838,151.11,151.05,10.3712838]
[1749225875315,6.66311528,151.1,151.07,6.6142]
[1749225876515,6.6135,151.09,151.06,6.66354318]
[1749225876715,0.04991528,151.1,151.06,0.04894318]
[1749225877117,0.04991528,151.1,151.09,6.6134]
[1749225878309,40.571,151.15,151.12,6.6116]
[1749225879013,6.6105,151.16,151.13,6.6116]
[1749225879207,0.04593938,151.16,151.13,8.19108122]
[1749225879812,0.04593938,151.16,151.14,6.6109]
[1749225880215,6.65633938,151.16,151.13,14.80248122]
[1749225880715,0.04593938,151.16,151.14,6.611]
[1749225881018,0.04593938,151.16,151.13,8.19108122]
[1749225881218,6.65653938,151.16,151.13,14.80238122]
[1749225881414,6.65653938,151.16,151.13,8.19108122]
[1749225882220,0.04593938,151.16,151.13,8.19108122]
[1749225883521,0.04593938,151.16,151.14,6.6108]
[1749225883817,6.65633938,151.16,151.13,8.19108122]
[1749225884222,0.04593938,151.16,151.14,6.611]
[1749225884520,0.04593938,151.16,151.13,8.19108122]
[1749225884724,0.04593938,151.16,151.13,0.04659742]
[1749225884920,0.04593938,151.16,151.14,8.1444838]
[1749225885422,0.04593938,151.16,151.14,14.7552838]
[1749225886422,0.04593938,151.16,151.15,6.6108]
[1749225888424,129.38,151.27,151.15,6.6108]
[1749225888425,13.2097,151.29,151.15,33.94]
[1749225888625,38.2165,151.28,151.21,8.1444838]
[1749225888927,6.607,151.24,151.21,14.7523838]
[1749225889122,12.70480386,151.27,151.21,8.1444838]
[1749225889321,8.1444838,151.25,151.18,8.1444838]
[1749225889619,8.1444838,151.23,151.22,0.04395601]
[1749225889818,8.1444838,151.23,151.15,33.94]
[1749225890018,6.6097,151.18,151.15,6.6106]
[1749225890718,6.65767925,151.18,151.16,6.6103]
[1749225891026,6.65767925,151.18,151.15,6.65820633]
[1749225891423,6.65767925,151.18,151.15,0.04770633]
[1749225891424,0.04797925,151.18,151.15,0.04770633]
[1749225892528,6.65747925,151.18,151.15,0.04770633]
[1749225892724,0.04797925,151.18,151.15,8.19219013]
[1749225892928,0.04797925,151.18,151.17,6.6099]
[1749225900327,0.04797925,151.18,151.16,14.7545838]
[1749225900533,0.04797925,151.18,151.15,0.04770633]
[1749225900732,6.65767925,151.18,151.15,0.04770633]
[1749225900923,6.65767925,151.18,151.15,6.65820633]
[1749225901731,6.6099,151.17,151.15,6.65820633]
[1749225901932,0.04797925,151.18,151.15,0.04770633]
[1749225902231,6.65757925,151.18,151.15,0.04770633]
[1749225902437,0.04797925,151.18,151.16,6.6103]
[1749225902736,0.04797925,151.18,151.17,8.1444838]
[1749225903130,0.04797925,151.18,151.15,0.04770633]
[1749225903330,0.04797925,151.18,151.17,14.7543838]
[1749225903932,0.04797925,151.18,151.17,8.1444838]
[1749225904138,0.04797925,151.18,151.15,8.19219013]
[1749225904635,6.65787925,151.18,151.15,14.80289013]
[1749225904933,0.04797925,151.18,151.15,0.04770633]
[1749225905137,5.05724512,151.17,151.15,0.04770633]
[1749225905337,5.05724512,151.16,151.15,0.04770633]
[1749225905728,11.66754512,151.16,151.15,0.04770633]
[1749225905925,6.6103,151.16,151.15,0.04770633]
[1749225906429,6.6101,151.17,151.15,0.04770633]
[1749225907034,0.04797925,151.18,151.15,0.04770633]
[1749225907425,0.04797925,151.18,151.16,6.6101]
[1749225907831,6.65757925,151.18,151.15,0.04770633]
[1749225908027,6.65757925,151.18,151.15,6.65820633]
[1749225908638,0.04797925,151.18,151.15,0.04770633]
[1749225909333,0.04797925,151.18,151.16,6.61]
[1749225909533,2.60621952,151.17,151.16,6.61]
[1749225910643,2.61164901,151.17,151.15,6.65830633]
[1749225910839,6.65747925,151.18,151.15,0.04770633]
[1749225911040,2.61277572,151.17,151.15,0.04770633]
[1749225911236,6.65747925,151.18,151.15,0.04770633]
[1749225911436,2.61255231,151.17,151.15,0.04770633]
[1749225911636,6.65747925,151.18,151.15,0.04770633]
[1749225911932,2.60993647,151.17,151.15,0.04770633]
[1749225912236,0.04797925,151.18,151.16,6.6101]
[1749225912447,2.61103993,151.17,151.16,6.6101]
[1749225912940,0.04797925,151.18,151.17,6.6099]
[1749225913138,7.70843308,151.18,151.17,6.6099]
[1749225913841,2.65902918,151.18,151.17,6.6099]
[1749225914041,2.65976401,151.18,151.17,6.6099]
[1749225914237,2.66083873,151.18,151.17,6.6099]
[1749225914634,2.66152576,151.18,151.17,14.7543838]
[1749225915232,2.66152576,151.18,151.17,8.1444838]
[1749225915943,2.66152576,151.18,151.17,14.7543838]
[1749225916240,0.04797925,151.18,151.17,14.7543838]
[1749225916441,2.66293659,151.18,151.17,6.6099]
[1749225916839,2.6657576,151.18,151.17,6.6099]
[1749225917541,8.01475544,151.18,151.17,6.6099]
[1749225917841,8.01447588,151.18,151.17,6.6099]
[1749225918739,8.02077568,151.18,151.17,6.6099]
[1749225919040,0.04797925,151.18,151.17,40.5299]
[1749225920143,5.31397315,151.23,151.2,6.6084]
[1749225920144,6.6078,151.22,151.2,6.6084]
[1749225920344,7.97258262,151.21,151.2,6.6084]
[1749225920935,7.97771834,151.21,151.2,6.6084]
[1749225921337,7.98035033,151.21,151.2,6.6084]
[1749225923053,7.98221795,151.21,151.2,6.6084]
[1749225923253,7.98229756,151.21,151.2,6.6084]
[1749225923747,0.03559182,151.22,151.21,6.6081]
[1749225924355,0.03559182,151.22,151.21,40.5281]
[1749225924554,5.32649298,151.28,151.24,6.6065]
[1749225924851,46.4132838,151.29,151.24,6.6065]
[1749225924852,11.93239298,151.27,151.24,6.6065]
[1749225925047,5.32649298,151.28,151.24,6.6065]
[1749225925248,6.6058,151.27,151.25,14.7507838]
[1749225925445,6.6058,151.27,151.25,8.1444838]
[1749225925953,6.6058,151.27,151.25,14.7507838]
[1749225926948,5.32649298,151.28,151.24,0.04867675]
[1749225927155,5.32649298,151.27,151.24,0.04867675]
[1749225927653,6.6064,151.25,151.24,0.04867675]
[1749225928050,13.47097678,151.26,151.18,33.92]
[1749225928247,8.1444838,151.26,151.2,6.6084]
[1749225928449,8.1444838,151.26,151.19,8.1444838]
[1749225928650,13.47097678,151.26,151.19,8.1444838]
[1749225928854,6.6071,151.24,151.21,6.6079]
[1749225929148,6.65548825,151.24,151.21,6.65450954]
[1749225929346,6.65548825,151.24,151.21,14.79899334]
[1749225930150,6.65548825,151.24,151.23,8.1444838]
[1749225930151,0.04838825,151.24,151.23,8.1444838]
[1749225930755,5.32649298,151.28,151.23,8.1444838]
[1749225930954,2.1411,151.3,151.26,8.1444838]
[1749225931256,6.6044,151.3,151.27,6.6053]
[1749225931555,33.92,151.32,151.28,8.1444838]
[1749225931761,33.92,151.32,151.28,14.79934531]
[1749225931762,6.6041,151.31,151.28,14.79934531]
[1749225933053,6.6042,151.3,151.28,14.79934531]
[1749225933361,6.6042,151.3,151.28,8.19434531]
[1749225933654,6.604,151.31,151.28,8.19434531]
[1749225933959,6.604,151.31,151.28,14.79924531]
[1749225934258,9.58229174,151.34,151.28,14.79924531]
[1749225934259,6.6042,151.3,151.28,14.79924531]
[1749225937259,6.604,151.31,151.28,14.79924531]
[1749225937561,4.82840544,151.33,151.28,8.19434531]
[1749225937758,2.57336561,151.32,151.3,8.1444838]
[1749225937958,2.57336561,151.31,151.3,14.7486838]
[1749225938160,2.57336561,151.31,151.28,0.04986151]
[1749225938361,6.6031,151.33,151.3,8.1444838]
[1749225938656,2.5712823,151.32,151.3,8.1444838]
[1749225938960,6.6025,151.34,151.3,8.1444838]
[1749225939166,2.57078852,151.33,151.32,14.7477838]
[1749225939457,2.57078852,151.34,151.32,8.1444838]
[1749225939653,2.57054086,151.35,151.33,6.6026]
[1749225939850,10.14220033,151.39,151.34,8.1444838]
[1749225940054,7.40924544,151.38,151.35,0.0437103]
[1749225940272,7.40924393,151.37,151.35,0.0437103]
[1749225940556,2.57050797,151.36,151.35,0.0437103]
[1749225940761,9.17210797,151.36,151.35,0.0437103]
[1749225940966,9.16941682,151.36,151.35,0.0437103]
[1749225941554,9.1684522,151.36,151.35,0.0437103]
[1749225942259,6.6016,151.36,151.35,0.0437103]
[1749225942466,9.1684522,151.36,151.35,0.0437103]
[1749225942764,6.6016,151.36,151.35,0.0437103]
[1749225942962,9.1684522,151.36,151.35,0.0437103]
[1749225943162,6.6016,151.36,151.35,0.0437103]
[1749225943361,9.1684522,151.36,151.35,0.0437103]
[1749225943564,6.6016,151.36,151.35,0.0437103]
[1749225943765,9.1684522,151.36,151.35,0.0437103]
[1749225943965,6.6016,151.36,151.35,0.0437103]
[1749225944263,9.1684522,151.36,151.35,0.0437103]
[1749225944454,6.6016,151.36,151.35,0.0437103]
[1749225944658,9.1684522,151.36,151.35,0.0437103]
[1749225944855,6.6016,151.36,151.35,0.0437103]
[1749225945062,9.17462301,151.36,151.35,0.0437103]
[1749225945258,6.6016,151.36,151.35,0.0437103]
[1749225945462,9.17462301,151.36,151.35,0.0437103]
[1749225945767,9.17442301,151.37,151.35,0.0437103]
[1749225946270,6.6014,151.37,151.35,0.0437103]
[1749225946562,9.17442301,151.37,151.35,0.0437103]
[1749225946868,6.6016,151.36,151.35,0.0437103]
[1749225948070,6.6013,151.37,151.35,0.0437103]
[1749225948266,2.57867653,151.37,151.35,0.0437103]
[1749225948572,2.57849977,151.38,151.35,0.0437103]
[1749225948767,2.57849977,151.38,151.36,8.1444838]
[1749225949264,2.57833644,151.38,151.36,8.1444838]
[1749225949472,9.17873644,151.39,151.36,14.7457838]
[1749225949862,6.6004,151.39,151.36,14.7457838]
[1749225950064,9.17769192,151.39,151.36,14.7457838]
[1749225950260,6.6004,151.39,151.36,14.7457838]
[1749225950464,6.6007,151.38,151.36,8.1444838]
[1749225950768,2.57727026,151.39,151.36,8.1444838]
[1749225951068,2.57727026,151.4,151.36,8.1444838]
[1749225951268,6.6012,151.37,151.35,0.0437103]
[1749225952270,6.6009,151.38,151.35,6.6457103]
[1749225952471,7.43313856,151.39,151.35,0.0437103]
[1749225952668,10.72532735,151.4,151.35,0.0437103]
[1749225952968,6.6013,151.37,151.35,0.0437103]
[1749225953770,6.6009,151.38,151.35,6.6457103]
[1749225954369,6.6012,151.37,151.35,6.6457103]
[1749225955070,6.6012,151.37,151.35,0.0437103]
[1749225955269,7.43121007,151.4,151.35,0.0437103]
[1749225955270,6.6008,151.38,151.35,0.0437103]
[1749225955469,2.58060315,151.39,151.35,0.0437103]
[1749225955770,6.6012,151.37,151.35,0.0437103]
[1749225955970,2.58060315,151.39,151.35,0.0437103]
[1749225956170,2.58060315,151.39,151.35,6.6454103]
[1749225956375,6.601,151.38,151.35,6.6454103]
[1749225956569,6.601,151.38,151.35,0.0437103]
[1749225957677,6.6012,151.37,151.35,6.6455103]
[1749225957973,6.6012,151.37,151.35,0.0437103]
[1749225959674,4.4153,151.41,151.35,0.0437103]
[1749225960075,6.6005,151.39,151.36,6.6014]
[1749225960372,7.49103024,151.4,151.36,6.6014]
[1749225960580,7.49103024,151.39,151.35,0.0437103]
[1749225960776,8.1444838,151.4,151.35,0.0437103]
[1749225960981,8.1444838,151.38,151.35,0.0437103]
[1749225961279,6.6016,151.36,151.35,0.0437103]
[1749225962676,8.1444838,151.38,151.35,0.0437103]
[1749225962877,7.50136676,151.37,151.35,0.0437103]
[1749225963077,14.10296676,151.36,151.35,0.0437103]
[1749225963277,9.19680659,151.36,151.35,0.0437103]
[1749225963482,14.10296676,151.36,151.35,0.0437103]
[1749225963671,9.19686584,151.36,151.35,0.0437103]
[1749225963867,14.10302601,151.36,151.35,0.0437103]
[1749225964076,9.19686584,151.36,151.35,0.0437103]
[1749225964381,14.10656823,151.36,151.35,0.0437103]
[1749225965474,6.6031,151.33,151.31,33.88]
[1749225965876,4.90970239,151.34,151.31,6.6037]
[1749225966077,7.50668018,151.33,151.31,6.6037]
[1749225966277,4.91414187,151.33,151.31,6.6037]
[1749225966679,6.6466988,151.34,151.31,6.6037]
[1749225966872,7.51176328,151.33,151.31,6.6037]
[1749225967181,6.6466988,151.34,151.31,6.6037]
[1749225967676,7.50490449,151.33,151.31,6.6037]
[1749225967872,0.0439988,151.34,151.32,6.6032]
[1749225968080,0.0439988,151.34,151.31,8.1444838]
[1749225968373,2.59499302,151.33,151.31,8.1444838]
[1749225968581,0.0439988,151.34,151.31,8.1444838]
[1749225968777,2.5964322,151.33,151.31,8.1444838]
[1749225968971,0.0439988,151.34,151.32,6.603]
[1749225969176,2.59641235,151.33,151.32,6.603]
[1749225969376,2.59641235,151.33,151.31,8.1444838]
[1749225969572,0.0439988,151.34,151.32,6.6033]
[1749225969778,2.59642343,151.33,151.31,8.1444838]
[1749225969977,0.0439988,151.34,151.31,8.1444838]
[1749225970176,2.59682901,151.33,151.32,6.6031]
[1749225970778,0.0439988,151.34,151.32,6.6031]
[1749225970978,2.59048163,151.33,151.32,6.6031]
[1749225971180,0.0439988,151.34,151.33,6.6029]
[1749225971379,2.6344749,151.34,151.33,6.6029]
[1749225971886,7.5047798,151.34,151.33,6.6029]
[1749225972081,7.5047798,151.34,151.31,8.1444838]
[1749225972278,2.5904761,151.33,151.3,8.18670144]
[1749225972483,0.0439988,151.34,151.3,8.18670144]
[1749225972783,2.59146114,151.33,151.32,6.6031]
[1749225973887,7.4659438,151.33,151.32,6.6031]
[1749225974085,7.4659438,151.33,151.3,0.04221764]
[1749225974385,7.4659438,151.32,151.3,0.04221764]
[1749225974682,7.4659438,151.31,151.3,6.64641764]
[1749225974881,2.59146114,151.31,151.3,6.64641764]
[1749225975080,0.0439988,151.34,151.3,0.04221764]
[1749225975280,0.0439988,151.34,151.33,14.7473838]
[1749225975683,4.91874984,151.34,151.33,14.7473838]
[1749225976782,4.91874984,151.34,151.33,6.6029]
[1749225977084,4.92374548,151.34,151.33,6.6029]
[1749225977983,0.0439988,151.34,151.33,6.6029]
[1749225978283,4.92402627,151.34,151.33,6.6029]
[1749225978685,4.92553558,151.34,151.33,6.6029]
[1749225979477,4.92553558,151.34,151.32,14.7475838]
[1749225979681,0.0439988,151.34,151.32,8.1444838]
[1749225980187,0.0439988,151.34,151.33,6.6029]
[1749225980388,4.92313085,151.34,151.33,6.6029]
[1749225980689,4.92313085,151.34,151.32,14.7475838]
[1749225980886,4.87913205,151.33,151.32,14.7475838]
[1749225981287,4.87913205,151.33,151.31,6.6036]
[1749225981488,0.0439988,151.34,151.3,0.04221764]
[1749225981489,4.87989965,151.32,151.3,0.04221764]
[1749225981689,4.87991804,151.31,151.3,0.04221764]
[1749225981883,4.87991804,151.31,151.3,6.64621764]
[1749225982691,4.87991804,151.31,151.3,0.04221764]
[1749225983488,4.87991804,151.31,151.3,6.64641764]
[1749225983889,4.87991804,151.31,151.3,0.04221764]
[1749225985191,4.88725237,151.31,151.3,0.04221764]
[1749225985793,4.88702463,151.31,151.3,0.04221764]
[1749225985992,11.49082463,151.31,151.3,0.04221764]
[1749225986392,4.88702463,151.31,151.3,6.64641764]
[1749225987291,4.88541569,151.31,151.3,6.64641764]
[1749225987795,4.86383111,151.31,151.3,0.04221764]
[1749225988992,4.85744542,151.31,151.3,0.04221764]
[1749225989893,4.85744542,151.31,151.3,6.64641764]
[1749225990094,4.85661244,151.31,151.3,0.04221764]
[1749225990487,4.85661244,151.31,151.3,6.64641764]
[1749225990791,5.33518329,151.33,151.3,0.04221764]
[1749225990997,4.85661117,151.32,151.31,8.1444838]
[1749225991191,0.0439988,151.34,151.31,8.1444838]
[1749225991393,5.33518329,151.37,151.33,8.1444838]
[1749225991699,5.31969561,151.38,151.37,6.6012]
[1749225991899,5.31969561,151.38,151.35,8.1444838]
[1749225992299,5.31969561,151.38,151.37,6.6012]
[1749225992508,5.31969561,151.38,151.37,14.7456838]
[1749225996901,5.31969561,151.38,151.37,6.6012]
[1749226001802,5.29947902,151.43,151.41,6.599]
[1749226001998,5.29947902,151.43,151.4,8.18674847]
[1749226002206,5.29947902,151.43,151.4,0.04226467]
[1749226002403,6.5986,151.43,151.4,0.04226467]
[1749226003007,38.8574,151.44,151.4,0.04226467]
[1749226003008,45.4557,151.44,151.4,0.04226467]
[1749226003197,4.80841679,151.43,151.4,0.04226467]
[1749226003402,38.8574,151.44,151.4,0.04226467]
[1749226004211,6.5993,151.42,151.4,0.04226467]
[1749226004405,38.8574,151.44,151.4,0.04226467]
[1749226004703,4.5974,151.44,151.4,0.04226467]
[1749226004908,6.5992,151.42,151.4,0.04226467]
[1749226005206,4.5974,151.44,151.4,0.04226467]
[1749226005411,6.5994,151.41,151.4,0.04226467]
[1749226006310,6.5991,151.42,151.4,0.04226467]
[1749226006809,4.5974,151.44,151.4,0.04226467]
[1749226007011,6.5994,151.41,151.4,0.04226467]
[1749226007309,11.40782551,151.41,151.4,0.04226467]
[1749226008307,11.42422994,151.41,151.4,0.04226467]
[1749226008503,11.42423769,151.41,151.4,0.04226467]
[1749226008703,6.6012,151.37,151.36,34.26]
[1749226008908,42.3044838,151.43,151.36,34.26]
[1749226009103,4.82488114,151.42,151.36,34.26]
[1749226009312,4.82488114,151.42,151.35,8.1444838]
[1749226009313,8.1444838,151.39,151.33,34.16]
[1749226009509,4.82488114,151.38,151.33,34.16]
[1749226009710,4.86714581,151.37,151.34,0.04587207]
[1749226009915,6.6024,151.35,151.34,0.04587207]
[1749226011013,11.43953337,151.35,151.34,0.04587207]
[1749226012412,11.41326593,151.35,151.34,0.04587207]
[1749226012717,11.41325958,151.35,151.34,0.04587207]
[1749226013109,8.1444838,151.36,151.28,34.16]
[1749226013305,4.3657,151.38,151.28,34.16]
[1749226013306,8.1444838,151.34,151.28,34.16]
[1749226013617,4.80692147,151.33,151.28,34.16]
[1749226013811,8.1444838,151.34,151.28,34.16]
[1749226014018,4.8579508,151.33,151.29,0.04862089]
[1749226014214,12.95153566,151.32,151.29,0.04862089]
[1749226014414,4.80705186,151.31,151.29,0.04862089]
[1749226014618,6.6038,151.31,151.29,0.04862089]
[1749226014819,0.05089894,151.33,151.29,0.04862089]
[1749226015020,12.95109826,151.32,151.29,0.04862089]
[1749226015214,6.6042,151.3,151.29,0.04862089]
[1749226018618,14.7486838,151.3,151.29,0.04862089]
[1749226018820,6.6064,151.26,151.21,34.16]
[1749226019014,8.1444838,151.26,151.21,34.16]
[1749226019224,12.90994164,151.28,151.23,6.607]
[1749226019425,8.1444838,151.28,151.23,6.607]
[1749226020014,4.80812417,151.27,151.24,0.04515039]
[1749226020221,0.04320259,151.27,151.24,0.04515039]
[1749226020824,6.64910259,151.27,151.24,0.04515039]
[1749226021523,0.04320259,151.27,151.24,0.04515039]
[1749226022724,8.1444838,151.26,151.18,46.7244838]
[1749226023020,8.1444838,151.24,151.18,44.4478838]
[1749226023421,6.6075,151.23,151.19,6.6087]
[1749226023823,6.6582036,151.23,151.19,6.65577137]
[1749226024029,6.6582036,151.23,151.19,0.04707137]
[1749226024327,6.6582036,151.23,151.2,6.6085]
[1749226024725,0.0507036,151.23,151.19,0.04707137]
[1749226024932,8.1444838,151.2,151.19,0.04707137]
[1749226025224,8.1444838,151.2,151.13,2.2517]
[1749226025719,8.1444838,151.2,151.14,8.1444838]